Workbook

Sheet BILANS AKTYWA
A1: Lp. | D1: Pozycja: | F1: 31.12.2014 | G1: 31.12.2013
A3: A. | D3: Aktywa trwałe | F3: =F5+F7+F13+F14+F15 -> 2378000 | G3: =G5+G7+G13+G14+G15 -> 2316000
B5: I. | D5: Wartości niematerialne i prawne | F5: =F6 -> 48000 | G5: =G6 -> 59000
B6: 3. | D6: Inne wartości niematerialne i prawne | F6: 48000 | G6: 59000
B7: II. | D7: Rzeczowe aktywa trwałe | F7: =F8+F12 -> 2168000 | G7: =G8+G12 -> 2172000
B8: 1. | D8: Środki trwałe | F8: =SUM(F9:F11) -> 2168000 | G8: =SUM(G9:G11) -> 2172000
B9: c) | D9: urządzenia techniczne i maszyny | F9: 32000 | G9: 37000
B10: d) | D10: środki transportu | F10: 1278000 | G10: 1403000
B11: e) | D11: inne środki trwałe | F11: 858000 | G11: 732000
B12: 2. | D12: Środki trwałe w budowie | F12: 0 | G12: 0
B13: III. | D13: Należności długoterminowe | F13: 0 | G13: 0
B14: IV. | D14: Inwestycje długoterminowe | F14: 0 | G14: 0
B15: V. | D15: Długoterminowe rozliczenia międzyokresowe | F15: =F16 -> 162000 | G15: =G16 -> 85000
B16: 1. | D16: Aktywa z tytułu odroczonego podatku dochodowego | F16: 162000 | G16: 85000
A18: B. | E18: Aktywa obrotowe | F18: =F20+F23+F30+F35 -> 13838000 | G18: =G20+G23+G30+G35 -> 10947000
C20: I. | E20: Zapasy | F20: =SUM(F21:F22) -> 233000 | G20: =SUM(G21:G22) -> 87000
C21: 1. | E21: Materiały | F21: 44000 | G21: 23000
C22: 5. | E22: Zaliczki na dostawy | F22: 189000 | G22: 64000
C23: II. | E23: Należności krótkoterminowe | F23: =F24 -> 11159000 | G23: 9885000
C24: 2. | E24: Należności od pozostałych jednostek | F24: =F25+F27+F28+F29 -> 11159000 | G24: =G25+G27+G28+G29 -> 9885000
C25: a) | E25: z tytułu dostaw i usług, o okresie spłaty: | F25: =F26 -> 10672000 | G25: =G26 -> 9572000
C26: - | E26: do 12 miesięcy | F26: 10672000 | G26: 9572000
C27: b) | E27: z tytułu podatków, dotacji, ceł, ubezpieczeń społecznych | F27: 263000 | G27: 34000
C28: c) | E28: inne | F28: 224000 | G28: 279000
C29: d) | E29: dochodzone na drodze sądowej | F29: 0 | G29: 0
C30: III. | E30: Inwestycje krótkoterminowe | F30: =F31 -> 2239000 | G30: =G31 -> 767000
C31: 1. | E31: Krótkoterminowe aktywa finansowe | F31: =F32 -> 2239000 | G31: =G32 -> 767000
C32: c) | E32: środki pieniężne i inne aktywa pieniężne | F32: =SUM(F33:F34) -> 2239000 | G32: =SUM(G33:G34) -> 767000
C33: - | E33: środki pieniężne w kasie i na rachunkach | F33: 2172000 | G33: 727000
C34: - | E34: Inne środki pieniężne | F34: 67000 | G34: 40000
C35: IV. | E35: Krótkoterminowe rozliczenia międzyokresowe | F35: 207000 | G35: 208000
A37: Aktywa razem | F37: =F3+F18 -> 16216000 | G37: =G3+G18 -> 13263000

Sheet BILANS PASYWA
A1: Lp. | C1: Pozycja: | D1: 31.12.2014 | E1: 31.12.2013
A3: A. | C3: Kapitał (fundusz) własny | D3: =SUM(D5:D13) -> 7744000 | E3: =SUM(E5:E13) -> 5469000
B5: I. | C5: Kapitał (fundusz) podstawowy | D5: 4000000 | E5: 4000000
B6: II. | C6: Należne wpłaty na kapitał podstawowy (wielkość ujemna) | D6: 0 | E6: 0
B7: III. | C7: Udziały (akcje) własne (wielkość ujemna) | D7: 0 | E7: 0
B8: IV. | C8: Kapitał (fundusz) zapasowy | D8: 207000 | E8: 105000
B9: V. | C9: Kapitał (fundusz) z aktualizacji wyceny | D9: 0 | E9: 0
B10: VI. | C10: Pozostałe kapitały (fundusze) rezerwowe | D10: 1444000 | E10: 280000
B11: VII. | C11: Zysk (strata) z lat ubiegłych | D11: -182000 | E11: 0
B12: VIII. | C12: Zysk (strata) netto | D12: 2275000 | E12: 1084000
B13: IX. | C13: Odpisy z zysku netto w ciągu roku obrotowego (wielkość ujemna) | D13: 0 | E13: 0
A15: B. | C15: Zobowiązania i rezerwy na zobowiązania | D15: =D17+D26+D31+D42 -> 8472000 | E15: =E17+E26+E31+E42 -> 7793904.81
B17: I. | C17: Rezerwy na zobowiązania | D17: =D18+D19+D22 -> 1155000 | E17: =E18+E19+E22 -> 583000
B18: 1. | C18: Rezerwa z tytułu odroczonego podatku dochodowego | D18: 0 | E18: 7000
B19: 2. | C19: Rezerwa na świadczenia emerytalne i podobne | D19: =SUM(D20:D21) -> 682000 | E19: =SUM(E20:E21) -> 344000
B20: - | C20: długoterminowa | D20: 320000 | E20: 27000
B21: - | C21: krótkoterminowa | D21: 362000 | E21: 317000
B22: 3. | C22: Pozostałe rezerwy | D22: =SUM(D23:D24) -> 473000 | E22: =SUM(E23:E24) -> 232000
B23: - | C23: długoterminowe | D23: 217000 | E23: 0
B24: - | C24: krótkoterminowe | D24: 256000 | E24: 232000
B26: II. | C26: Zobowiązania długoterminowe | D26: =D27 -> 576000 | E26: =E27 -> 2264231.81
B27: 2. | C27: Wobec pozostałych jednostek | D27: =SUM(D28:D29) -> 576000 | E27: =SUM(E28:E29) -> 2264231.81
B28: a) | C28: kredyty i pożyczki | D28: 0 | E28: 1865327
B29: c) | C29: inne zobowiązania finansowe | D29: 576000 | E29: 398904.81
B31: III. | C31: Zobowiązania krótkoterminowe | D31: =D32+D40 -> 6391000 | E31: =E32+E40 -> 4622673
B32: 2. | C32: Wobec pozostałych jednostek | D32: =D33+D34+D35+D37+D38+D39 -> 6343000 | E32: =E33+E34+E35+E37+E38+E39 -> 4576673
B33: a) | C33: Kredyty i pożyczki | D33: 3483000 | E33: 2014673
B34: c) | C34: inne zobowiązania finansowe | D34: 610000 | E34: 836000
B35: d) | C35: z tytułu dostaw i usług, o okresie wymagalności: | D35: =D36 -> 711000 | E35: =E36 -> 239000
B36: - | C36: do 12 miesięcy | D36: 711000 | E36: 239000
B37: g) | C37: z tytułu podatków, ceł, ubezpieczeń i innych świadczeń | D37: 846000 | E37: 887000
B38: h) | C38: z tytułu wynagrodzeń | D38: 672000 | E38: 597000
B39: i) | C39: inne | D39: 21000 | E39: 3000
B40: 3. | C40: Fundusze specjalne | D40: 48000 | E40: 46000
B42: IV. | C42: Rozliczenia międzyokresowe | D42: =D43 -> 350000 | E42: =E43 -> 324000
B43: 2. | C43: Inne rozliczenia międzyokresowe | D43: =D44 -> 350000 | E43: =E44 -> 324000
B44: - | C44: krótkoterminowe | D44: 350000 | E44: 324000
A46: Pasywa razem | D46: =D3+D15 -> 16216000 | E46: =E3+E15 -> 13262904.81

Sheet P&L
A1: Lp. | C1: Pozycja: | D1: 01.01.2014- | E1: 01.01.2013-
D2: 31.12.2014 | E2: 31.12.2013
A4: A. | C4: Przychody netto ze sprzedaży i zrównane z nimi, w tym: | D4: =D5 -> 26983000 | E4: =E5 -> 21445000
B5: I. | C5: Przychody netto ze sprzedaży | D5: 26983000 | E5: 21445000
A7: B. | C7: Koszty działalności operacyjnej | D7: =SUM(D8:D15) -> 21756000 | E7: =SUM(E8:E15) -> 20219000
B8: I. | C8: Amortyzacja | D8: 1251000 | E8: 1332000
B9: II. | C9: Zużycie materiałów i energii | D9: 1495000 | E9: 1528000
B10: III. | C10: Usługi obce | D10: 5902000 | E10: 4402000
B11: IV. | C11: Podatki i opłaty | D11: 191000 | E11: 150000
B12: V. | C12: Wynagrodzenia | D12: 10583000 | E12: 10524000
B13: VI. | C13: Ubezpieczenia społeczne i inne świadczenia | D13: 2009000 | E13: 1917000
B14: VII. | C14: Pozostałe koszty rodzajowe | D14: 325000 | E14: 366000
B15: VIII. | C15: Wartość sprzedanych towarów i materiałów | D15: 0 | E15: 0
A17: C. | C17: ZYSK / STRATA ZE SPRZEDAŻY (A-B) | D17: =D4-D7 -> 5227000 | E17: =E4-E7 -> 1226000
A19: D. | C19: Pozostałe przychody operacyjne | D19: =SUM(D20:D22) -> 9915000 | E19: =SUM(E20:E22) -> 5415000
B20: I. | C20: Zysk ze zbycia niefinansowych aktywów trwałych | D20: 5000 | E20: 93000
B21: II. | C21: Dotacje | D21: 957000 | E21: 454000
B22: III. | C22: Inne przychody operacyjne | D22: 8953000 | E22: 4868000
A23: E. | C23: Pozostałe koszty operacyjne | D23: =SUM(D24:D26) -> 7157000 | E23: =SUM(E24:E26) -> 4262000
B24: I. | C24: Strata ze zbycia niefinansowych aktywów trwałych | D24: 0 | E24: 0
B25: II. | C25: Aktualizacja wartości aktywów niefinansowych | D25: 267000 | E25: 389000
B26: III. | C26: Inne koszty operacyjne | D26: 6890000 | E26: 3873000
A28: F. | C28: ZYSK / STRATA Z DZIAŁALNOŚCI OPERACYJNEJ (C+D-E) | D28: =D17+D19-D23 -> 7985000 | E28: =E17+E19-E23 -> 2379000
A30: G. | C30: Przychody finansowe | D30: =SUM(D31:D35) -> 502000 | E30: =SUM(E31:E35) -> 4000
B31: I. | C31: Dywidendy i udziały w zyskach | D31: 0 | E31: 0
B32: II. | C32: Odsetki | D32: 6000 | E32: 4000
B33: III. | C33: Zysk ze zbycia inwestycji | D33: 0 | E33: 0
B34: IV. | C34: Aktualizacja wartości inwestycji | D34: 0 | E34: 0
B35: V. | C35: Inne | D35: 496000 | E35: 0
A36: H. | C36: Koszty finansowe | D36: =SUM(D37:D40) -> 5542000 | E36: =SUM(E37:E40) -> 665000
B37: I. | C37: Odsetki | D37: 322000 | E37: 470000
B38: II. | C38: Strata ze zbycia inwestycji | D38: 0 | E38: 0
B39: III. | C39: Aktualizacja wartości inwestycji | D39: 0 | E39: 0
B40: IV. | C40: Inne | D40: 5220000 | E40: 195000
A41: I. | C41: ZYSK / STRATA Z DZIAŁALNOŚCI GOSPODARCZEJ (F+G-H) | D41: =D28+D30-D36 -> 2945000 | E41: =E28+E30-E36 -> 1718000
A42: J. | C42: Wynik zdarzeń nadzwyczajnych | D42: 0 | E42: 0
A44: K. | C44: ZYSK / STRATA BRUTTO | D44: =D41 -> 2945000 | E44: =E41 -> 1718000
A46: L. | C46: Podatek dochodowy | D46: 670000 | E46: 634000
A47: M. | C47: Pozostałe obowiązkowe zmniejszenia zysku (zwiększenia straty) | D47: 0 | E47: 0
A49: N. | C49: ZYSK / STRATA NETTO (K-L-M) | D49: =D44-D46 -> 2275000 | E49: =E44-E46 -> 1084000

Sheet CF
A1: Lp. | C1: Pozycja: | D1: 01.01.2014- | E1: 01.01.2013-
D2: 31.12.2014 | E2: 31.12.2013
A4: A. | C4: Przepływy środków pieniężnych z działalności operacyjnej
B5: I. | C5: Zysk (strata) netto | D5: 2275000 | E5: 1084000
B6: II. | C6: Korekty razem | D6: =SUM(D7:D15) -> 2751000 | E6: =SUM(E7:E15) -> -65000
B7: 1. | C7: Amortyzacja | D7: 1251000 | E7: 1332000
B8: 3. | C8: Odsetki i udziały w zyskach (dywidendy) | D8: 2039000 | E8: 662000
B9: 4. | C9: Zysk (strata) z działalności inwestycyjnej | D9: -501000 | E9: -94000
B10: 5. | C10: Zmiana stanu rezerw | D10: 917000 | E10: 359000
B11: 6. | C11: Zmiana stanu zapasów | D11: -146000 | E11: -47000
B12: 7. | C12: Zmiana stanu należności | D12: -1274000 | E12: -2099000
B13: 8. | C13: Zmiana stanu zobowiązań krótkoterminowych, z wyjątkiem pożyczek i kredytów | D13: 527000 | E13: -263000
B14: 9. | C14: Zmiana stanu rozliczeń międzyokresowych | D14: -51000 | E14: -21000
B15: 10. | C15: Inne korekty | D15: -11000 | E15: 106000
B17: III. | C17: Przepływy pieniężne netto z działalności operacyjnej (I+/–II) | D17: =D5+D6 -> 5026000 | E17: =E5+E6 -> 1019000
A19: B. | C19: Przepływy środków pieniężnych z działalności inwestycyjnej
B20: I. | C20: Wpływy | D20: =D21+D22 -> 17000 | E20: =E21+E22 -> 98000
B21: 1. | C21: Zbycie wartości niematerialnych i prawnych oraz rzeczowych aktywów trwałych | D21: 11000 | E21: 94000
B22: 3. | C22: Z aktywów finansowych, w tym: | D22: =D23 -> 6000 | E22: =E23 -> 4000
B23: b) | C23: w pozostałych jednostkach | D23: =D24 -> 6000 | E23: =E24 -> 4000
B24: – | C24: odsetki | D24: 6000 | E24: 4000
B25: II. | C25: Wydatki | D25: =D26 -> -1239000 | E25: =E26 -> -1314000
B26: 1. | C26: Nabycie wartości niematerialnych i prawnych oraz rzeczowych aktywów trwałych | D26: -1239000 | E26: -1314000
B28: III. | C28: Przepływy pieniężne netto z działalności inwestycyjnej (I–II) | D28: =D20+D25 -> -1222000 | E28: =E20+E25 -> -1216000
A30: C. | C30: Przepływy środków pieniężnych z działalności finansowej
B31: I. | C31: Wpływy | D31: =SUM(D32:D33) -> 501000 | E31: =SUM(E32:E33) -> 413000
B32: 2. | C32: Kredyty i pożyczki | D32: 0 | E32: 409000
B33: 4. | C33: Inne wpływy finansowe | D33: 501000 | E33: 4000
B34: II. | C34: Wydatki | D34: =SUM(D35:D38) -> -2832000 | E34: =SUM(E35:E38) -> -771000
B35: 3. | C35: Inne niż wypłaty na rzecz właścicieli wydatki z tytułu podziału zysku | D35: -389000 | E35: -106000
B36: 4. | C36: Spłaty kredytów i pożyczek | D36: -398000 | E36: 0
B37: 8. | C37: Odsetki | D37: -461000 | E37: -470000
B38: 9. | C38: Inne wydatki finansowe | D38: -1584000 | E38: -195000
B40: III. | C40: Przepływy pieniężne netto z działalności finansowej (I–II) | D40: =D31+D34 -> -2331000 | E40: =E31+E34 -> -358000
A42: D. | C42: Przepływy pieniężne netto, razem (A.III+/–B.III+/-C.III) | D42: 1472000 | E42: -555000
A43: E. | C43: Bilansowa zmiana stanu środków pieniężnych, w tym: | D43: =D42 -> 1472000 | E43: =E42 -> -555000
A44: F. | C44: Środki pieniężne na początek okresu | D44: 767000 | E44: 1322000
A45: G. | C45: Środki pieniężne na koniec okresu (F+/–D), w tym: | D45: =D44+D43 -> 2239000 | E45: =E44+E43 -> 767000

Sheet Wskaźniki
C1: 3711406.67 | D1: 9376000 | F1: 9376
B2: Wskaźniki za lata 2012 - 2014
B3: 2012 | C3: 2013 | D3: 2014
A4: Wskaźniki zadłużenia
A5: Wskaźnik ogólnego zadłużenia | B5: 0.5707 | C5: 0.587649853 | D5: 0.522446966
A6: Wskaźnik zadłużenia kapitału własnego | B6: 1.3293 | C6: 1.425123423 | D6: 1.094008264
A7: Wskaźnik zadłużenia netto / EBITDA | B7: 3.8589 | C7: 1.893352204 | D7: 0.6647824232
A9: Wskaźniki płynności
A10: Wskaźnik płynności bieżącej | B10: 2.5913 | C10: 2.367942894 | D10: 2.165232358
A11: Wskaźnik płynności szybkiej | B11: 2.5288 | C11: 2.304131516 | D11: 2.096385542
A12: Wskaźnik płynności gotówkowej | B12: 0.3672 | C12: 0.1659095825 | D12: 0.3503364106
A14: Wskaźniki rentowności
A15: Wskaźnik rentowności sprzedaży | B15: 0.0061 | C15: 0.05054791327 | D15: 0.08431234481
A16: Wskaźnik rentowności kapitałów własnych | B16: 0.0241 | C16: 0.1982080819 | D16: 0.2937758264
A17: Wskaźnik rentowności aktywów | B17: 0.0103 | C17: 0.08173113172 | D17: 0.1402935372
